[Event "NSV chessemy IM 2022"]
[Site "Braunschweig"]
[Date "2022.08.04"]
[Round "6.4"]
[White "Colbow, Collin"]
[Black "Chennaoui, Yasin"]
[Result "1-0"]
[ECO "B07"]
[WhiteElo "2325"]
[BlackElo "2127"]
[Annotator "TA"]
[PlyCount "71"]
[EventDate "2022.07.30"]
[EventType "tourn"]
[EventCountry "GER"]
[SourceTitle "playchess.com"]
[Source "ChessBase"]
[SourceQuality "1"]
[TimeControl "40/5400+30:1800+30"]

{[%evp 9,70,13,59,57,56,56,60,39,70,84,100,95,87,87,104,99,106,93,92,97,125,55,125,148,170,167,220,187,244,239,242,237,658,652,741,734,726,728,728,720,1099,1079,1263,841,1156,1160,1417,787,1104,1006,29980,1091,29993,29994,29994,29995,29995,29996,29996,29997,29998,29999,29999]} 1. e4 {[%emt 0:00:02] Finkel,A} d6 {[%emt 0:00:05]} 2. d4 {[%emt 0:00:04]} Nf6 {[%emt 0:00:04]} 3. Nc3 {[%emt 0:00:06]} e5 {[%emt 0:00:05]} 4. Nge2 {[%emt 0:00:04]} Be7 {[%emt 0:08:09]} 5. g3 {[%emt 0:00:25]} Bg4 {[%emt 0:01:31]} (5... O-O $11) 6. Bg2 $14 {[%emt 0:03:39] B07: Pirc Defence: Miscellaneous Systems.} exd4 {[%emt 0:02:38]} 7. Qxd4 {[%emt 0:01:04] e5 is the strong threat.} Nc6 {[%emt 0:00:08] Against e5} 8. Qe3 {[%emt 0:05:41] [#] White is slightly better.} h5 $146 {[%emt 0:34:17]} ({Predecessor:} 8... O-O 9. O-O Qc8 10. Nf4 Re8 11. b3 Bf8 12. Bb2 Ne5 13. h3 Bd7 14. g4 Ng6 {0-1 (40) Smirnov,P (2635)-Bocharov,D (2574) Kazan 2005 CBM 109 [Finkel,A]}) 9. h3 {[%emt 0:01:14]} Bd7 {[%emt 0:00:12]} 10. b3 {[%emt 0:03:20]} Nb4 {[%emt 0:04:58]} 11. Qd2 {[%emt 0:01:03]} c6 {[%emt 0:00:07]} 12. a3 {[%emt 0:08:48]} Na6 {[%emt 0:00:08]} 13. Bb2 {[%emt 0:00:10]} Nc5 {[%emt 0:11:11]} 14. f4 {[%emt 0:05:35][%cal Bf2f4,Bf4f5][%mdl 32]} a5 {[%emt 0:11:02]} 15. O-O {[%emt 0:05:55]} (15. O-O-O $16) 15... Ne6 {[%emt 0:09:35]} ({Better is} 15... Qc7 $14) 16. Rad1 $16 {[%emt 0:06:25]} Qb6+ {[%emt 0:00:52]} 17. Kh1 {[%emt 0:11:26]} Ng4 {[%emt 0:01:04]} (17... O-O-O $142 18. Na4 Qa7) 18. f5 $18 {[%emt 0:05:09]} Ng5 {[%emt 0:05:45] [#]} (18... Nc5 {is a better defense.} 19. Nb1 Nf6) 19. Na4 $1 {[%emt 0:02:03]} Qe3 {[%emt 0:04:24][%cal Ob7b5]} 20. Bxg7 {[%emt 0:00:51] Chess con chili.} f6 $2 {[%emt 0:02:38]} (20... Rh7) 21. Bxh8 {[%emt 0:04:11]} Nf2+ {[%emt 0:00:32] [#]} 22. Rxf2 $1 {[%emt 0:08:56]} Qxf2 {[%emt 0:00:01]} 23. Bg7 {[%emt 0:01:51]} b5 {[%emt 0:01:31]} 24. Nac3 {[%emt 0:01:48][%cal Og7f6] Strongly threatening Bxf6!} b4 {[%emt 0:00:07]} 25. axb4 {[%emt 0:01:15]} axb4 {[%emt 0:00:01]} 26. Na4 {[%emt 0:00:11]} Nf3 {[%emt 0:00:35]} 27. Qf4 {[%emt 0:01:42]} Qxe2 {[%emt 0:00:12]} 28. Qxf3 {[%emt 0:02:54]} Qxc2 {[%emt 0:00:02]} 29. e5 {[%emt 0:01:15]} dxe5 {[%emt 0:02:18]} 30. Nb6 {[%emt 0:02:07]} (30. Qxh5+ $142 Kd8 31. Qh8+ Kc7 32. Rxd7+ Kxd7 33. Qxa8 Qb1+ 34. Kh2 e4 35. Nb6+ Kd6 36. Nc8+ Kd5 37. Nxe7+ Kd4 38. Qxc6) 30... Ra7 {[%emt 0:00:14]} 31. Qxh5+ {[%emt 0:00:07] White mates.} Kd8 {[%emt 0:00:01]} 32. Qh8+ {[%emt 0:00:21]} Kc7 {[%emt 0:00:05]} 33. Rxd7+ {[%emt 0:00:04]} Kxb6 {[%emt 0:00:04]} 34. Qb8+ {[%emt 0:00:05]} Kc5 {[%emt 0:01:38]} 35. Qxa7+ {[%emt 0:00:05]} Kb5 {[%emt 0:00:06]} 36. Rb7# {[%emt 0:00:35] Weighted Error Value: White=0.11 (very precise) /Black=0.84} 1-0

[Event "NSV chessemy IM 2022"]
[Site "Braunschweig"]
[Date "2022.08.04"]
[Round "6.5"]
[White "von Mettenheim, Johannes"]
[Black "Voege, Tobias"]
[Result "1-0"]
[ECO "E43"]
[WhiteElo "2253"]
[BlackElo "2272"]
[Annotator "TA"]
[PlyCount "69"]
[EventDate "2022.07.30"]
[EventType "tourn"]
[EventCountry "GER"]
[SourceTitle "playchess.com"]
[Source "ChessBase"]
[SourceQuality "1"]
[TimeControl "40/5400+30:1800+30"]

{[%evp 14,69,15,-18,5,0,75,84,126,129,131,126,121,123,140,120,115,116,187,178,191,150,160,167,153,64,130,118,136,129,144,154,147,147,179,178,172,175,180,154,177,116,116,93,204,185,231,212,271,265,359,362,347,331,361,357,956,930]} 1. d4 {[%emt 0:00:05]} e6 {[%emt 0:00:05]} 2. c4 {[%emt 0:00:06]} b6 {[%emt 0:00:03]} 3. Nf3 {[%emt 0:01:39]} Bb7 {[%emt 0:00:11]} 4. Nc3 {[%emt 0:01:59]} Bb4 {[%emt 0:00:47]} 5. Qc2 {[%emt 0:00:51]} Nf6 {[%emt 0:05:55]} 6. e3 {[%emt 0:02:15]} O-O {[%emt 0:02:39]} 7. Bd3 {[%emt 0:02:21]} d5 {[%emt 0:01:50]} 8. O-O {[%emt 0:00:52]} Re8 {[%emt 0:05:21] E43: Nimzo-Indian: Rubinstein: 4...b6.} 9. Bd2 {[%emt 0:07:30][%cal Oc3d5]} Nbd7 {[%emt 0:01:54] [#]} (9... dxc4 $11 10. Bxc4 Nbd7) 10. Nxd5 $146 {[%emt 0:08:29] White is more active.} ({Predecessor:} 10. cxd5 exd5 11. Nb5 Bf8 12. Qxc7 Ba6 13. Qxd8 Rexd8 14. Rfc1 Ne4 15. Bf1 Nxd2 16. Nxd2 Bxb5 17. Bxb5 {½-½ (78) Ignatovic,E (1603)-Maroroa,S (1987) Gatwick 2011}) 10... Nxd5 {[%emt 0:17:58] White is better.} (10... exd5 11. Bxb4) 11. cxd5 {[%emt 0:00:49]} (11. Bxh7+ Kh8 $14) 11... Bxd2 {[%emt 0:00:31]} 12. dxe6 {[%emt 0:09:46]} (12. Qxd2 $6 exd5 13. Rac1 c6 $11) (12. Bxh7+ $6 Kh8 $14) 12... Rxe6 {[%emt 0:06:50] Hoping for ...Bxf3.} 13. Nxd2 {[%emt 0:02:47]} (13. Bxh7+ $6 Kh8 $14) 13... Nf6 {[%emt 0:09:24]} 14. Be2 {[%emt 0:09:35]} Rc8 {[%emt 0:04:34]} 15. Bf3 {[%emt 0:01:44]} Ba6 {[%emt 0:01:58] [#]} (15... Bxf3 $16 16. Nxf3 (16. gxf3 Nd5 $11) 16... c5) 16. Rfd1 $1 $18 {[%emt 0:04:27]} c5 {[%emt 0:03:59]} 17. d5 {[%emt 0:00:52]} ({Much less strong is} 17. Qa4 $6 b5 18. Qb3 cxd4 $14) 17... Re5 {[%emt 0:01:39]} (17... Nxd5 $2 18. Nc4 Bxc4 19. Qxc4 $18) 18. Qa4 {[%emt 0:07:05]} Bd3 {[%emt 0:01:53]} 19. Nb1 {[%emt 0:00:46]} ({But not} 19. Qxa7 $6 Ra8 20. Qb7 Re7 $11) (19. Rac1 $16) 19... Bxb1 {[%emt 0:06:39]} ({Black should try} 19... Be4 $14) 20. Raxb1 $16 {[%emt 0:00:17]} Rc7 {[%emt 0:01:18]} 21. Rd2 {[%emt 0:01:57]} Qd6 {[%emt 0:08:14]} 22. Rbd1 {[%emt 0:01:29]} g5 {[%emt 0:00:12]} 23. g3 {[%emt 0:03:21]} g4 {[%emt 0:02:25]} 24. Bg2 {[%emt 0:00:06]} ({And not} 24. Bxg4 Re4 25. Qc2 Rxg4 $17) 24... h5 {[%emt 0:00:43]} 25. Qf4 {[%emt 0:02:26]} Kg7 {[%emt 0:04:00]} 26. b3 {[%emt 0:03:23][%cal Bb2b3,Bb3b4][%mdl 32]} Rc8 {[%emt 0:02:10]} 27. Qc4 {[%emt 0:04:20]} (27. f3 $18) 27... h4 {[%emt 0:03:03]} 28. b4 {[%emt 0:05:15]} hxg3 {[%emt 0:01:23]} (28... Ree8 $16) 29. hxg3 $18 {[%emt 0:00:22]} Rg5 {[%emt 0:05:06]} (29... Ree8 {might work better.} 30. bxc5 Rxc5) 30. Qf4 {[%emt 0:01:12]} Re5 {[%emt 0:00:19]} 31. Rc2 {[%emt 0:00:26]} Rce8 {[%emt 0:02:05]} 32. bxc5 {[%emt 0:00:38]} bxc5 {[%emt 0:00:01]} 33. Rdc1 {[%emt 0:00:31]} Qd7 {[%emt 0:01:18]} 34. Rxc5 {[%emt 0:00:33]} Nxd5 $2 {[%emt 0:00:19]} (34... Qf5 35. R5c4 Qxf4 36. gxf4 Rf5) 35. Qd4 {[%emt 0:00:53] Weighted Error Value: White=0.12 (very precise) /Black=0.35} 1-0

[Event "NSV chessemy IM 2022"]
[Site "Braunschweig"]
[Date "2022.08.05"]
[Round "7.1"]
[White "Voege, Tobias"]
[Black "Brynell, Stellan"]
[Result "1-0"]
[ECO "E13"]
[WhiteElo "2272"]
[BlackElo "2387"]
[Annotator "TA"]
[PlyCount "157"]
[EventDate "2022.07.30"]
[EventType "tourn"]
[EventCountry "GER"]
[SourceTitle "playchess.com"]
[Source "ChessBase"]
[SourceQuality "1"]
[TimeControl "40/5400+30:1800+30"]

{[%evp 21,157,-15,-15,-11,-18,-2,-8,-31,-19,-25,-7,-29,-21,-43,-14,-8,-10,-12,-19,-38,-22,-26,5,-47,61,16,47,12,0,0,17,8,8,17,62,10,10,0,10,10,10,-62,45,0,84,33,128,114,222,212,252,253,277,173,135,75,93,87,211,206,216,218,397,405,1754,1418,5081,5078,2037,841,813,728,1038,1029,1188,453,462,445,434,434,395,372,485,247,851,685,914,872,1099,918,624,0,484,412,907,1097,1096,1085,1081,1026,931,909,840,590,1103,0,525,517,313,279,1247,1231,1076,931,29974,29975,29975,29976,29976,29977,29977,16,16,0,29977,29974,29975,30,30,16,16,16,16,16,16,12,29982,29979]} 1. d4 {[%emt 0:00:02]} Nf6 {[%emt 0:00:10]} 2. c4 {[%emt 0:00:04]} e6 {[%emt 0:00:05]} 3. Nc3 {[%emt 0:00:03]} Bb4 {[%emt 0:00:12]} 4. Nf3 {[%emt 0:00:05]} b6 {[%emt 0:00:15]} 5. Bg5 {[%emt 0:00:04][%cal Bc1g5,Bg5h4,Bh4g3][%mdl 32]} h6 {[%emt 0:00:08]} 6. Bh4 {[%emt 0:00:03]} g5 {[%emt 0:00:10]} 7. Bg3 {[%emt 0:00:03]} Ne4 {[%emt 0:00:06]} 8. Qc2 {[%emt 0:00:02]} Bb7 {[%emt 0:00:12]} 9. e3 {[%emt 0:00:04]} Bxc3+ {[%emt 0:00:16]} 10. bxc3 {[%emt 0:00:04]} Nxg3 {[%emt 0:00:14]} 11. fxg3 {[%emt 0:00:08]} g4 {[%emt 0:00:31]} 12. Nh4 {[%emt 0:08:20] E13: Queen's Indian/Nimzo-Indian hybrid: 4 Nc3 Bb7 5 Bg5 h6 6 Bh4 Bb4.} Nc6 {[%emt 0:00:12]} 13. Bd3 {[%emt 0:02:42]} Qf6 {[%emt 0:00:12]} 14. Qe2 {[%emt 0:08:43] The position is equal.} h5 {[%emt 0:00:36]} 15. Rf1 {[%emt 0:08:09] [#]} Qg5 $146 {[%emt 0:00:12]} ({Predecessor:} 15... Qg7 16. Kf2 Rh6 17. Kg1 Rf6 18. Rfb1 Kf8 19. Rb5 Rh6 20. Rf1 Ba6 21. Rbb1 Re8 {0-1 (52) Rombaldoni,D (2493)-Marin,M (2597) Bratto 2010}) 16. Rb1 {[%emt 0:05:10]} d6 {[%emt 0:06:39]} 17. Kf2 {[%emt 0:16:31]} Rh6 {[%emt 0:15:59]} 18. Kg1 {[%emt 0:01:06] Active counter play!} Rf6 {[%emt 0:00:07]} 19. Rf4 {[%emt 0:03:21]} Ne7 {[%emt 0:16:54]} 20. a4 {[%emt 0:14:10]} O-O-O {[%emt 0:05:46]} 21. Rb5 {[%emt 0:03:41]} c5 {[%emt 0:00:39]} 22. a5 {[%emt 0:02:27]} (22. Qf2 $11 Rxf4 23. gxf4) 22... Kc7 {[%emt 0:06:40]} ({Better is} 22... Rxf4 $1 $15 23. exf4 Qf6) 23. Rb1 {[%emt 0:03:58]} Rb8 {[%emt 0:10:09]} 24. axb6+ {[%emt 0:04:02]} (24. Qf2 $5 Ng8 25. Ra1 $14) 24... axb6 {[%emt 0:00:05]} 25. Qf2 {[%emt 0:06:57]} Rxf4 {[%emt 0:00:22]} 26. gxf4 {[%emt 0:00:51]} Qf6 {[%emt 0:09:32]} 27. g3 {[%emt 0:01:14]} Nc6 {[%emt 0:05:40]} 28. Rd1 {[%emt 0:07:06]} (28. Ng2 $14) 28... Ra8 $11 {[%emt 0:02:02]} 29. Qb2 {[%emt 0:00:59]} Ba6 {[%emt 0:02:39]} 30. Qe2 {[%emt 0:03:47]} Na5 {[%emt 0:01:06]} 31. e4 {[%emt 0:01:19]} (31. Ng2 $11) 31... Bb7 {[%emt 0:05:00]} ({Black should play} 31... cxd4 $15 32. c5 dxc5 33. Bxa6 dxc3) 32. e5 {[%emt 0:00:37]} Qe7 {[%emt 0:00:27]} (32... dxe5 $11 33. fxe5 Qe7) 33. f5 {[%emt 0:00:20]} (33. d5 $1 $16) 33... Rd8 {[%emt 0:04:39]} (33... cxd4 $14 34. cxd4 Rd8) 34. fxe6 $1 $16 {[%emt 0:00:39]} fxe6 {[%emt 0:00:42]} (34... Qxe6 $16 {might work better.} 35. exd6+ Rxd6) 35. Ng6 $1 $18 {[%emt 0:00:06]} Qg5 {[%emt 0:00:33]} 36. Nf4 {[%emt 0:00:27]} Bc8 {[%emt 0:00:15]} 37. exd6+ {[%emt 0:00:23]} Rxd6 {[%emt 0:00:06]} 38. Qf2 {[%emt 0:00:41]} (38. Rb1 $142) 38... Nc6 {[%emt 0:03:16][%cal Rc5d4]} 39. Be4 {[%emt 0:00:42]} Bb7 {[%emt 0:02:53]} (39... cxd4 $16 40. cxd4 Qa5) 40. Bxc6 {[%emt 0:00:34]} Bxc6 {[%emt 0:00:12]} 41. Re1 {[%emt 0:02:03]} cxd4 $2 {[%emt 0:13:27]} (41... Kd7 42. d5 exd5) 42. cxd4 {[%emt 0:03:52] c5 is the strong threat.} (42. Nxe6+ Rxe6 43. Rxe6 (43. Qf7+ Bd7 $11) 43... dxc3 $16) 42... Kd7 {[%emt 0:02:01]} (42... Bd7 $142 43. d5 Qf5) 43. c5 {[%emt 0:11:19]} bxc5 {[%emt 0:02:07]} 44. dxc5 {[%emt 0:00:22][%mdl 64] Trapped Piece} Rd5 {[%emt 0:00:08]} 45. Qa2 {[%emt 0:03:40]} (45. Nxe6 $142 Qg8 46. Qb2) 45... Qf6 {[%emt 0:03:39]} 46. Nxd5 {[%emt 0:06:58]} Bxd5 {[%emt 0:00:22][%mdl 4096] Endgame KQR-KQB} 47. Qa4+ {[%emt 0:00:36]} Ke7 {[%emt 0:01:48]} 48. Qa7+ {[%emt 0:02:04]} (48. Rf1 $142 Qe5 49. Qa7+ Ke8 50. Qf7+ Kd8 51. Qf8+ (51. Rd1 Qe2 $18) 51... Kc7 52. Qe7+ Kc6 53. Qe8+ Kxc5 54. Qc8+ Kb4 55. Rb1+ Bb3 56. Qb7+ Kc5 57. Qxb3 Qd4+ 58. Kf1 Qc4+ 59. Qxc4+ Kxc4 60. Rd1) 48... Ke8 {[%emt 0:03:53]} 49. Qb8+ {[%emt 0:01:47]} Kd7 {[%emt 0:00:18] ( -> ...Qd4+)} 50. Qd6+ {[%emt 0:00:57]} (50. Rd1 Qc3 $16) 50... Kc8 {[%emt 0:00:02]} 51. Qa6+ {[%emt 0:00:55]} Kd7 {[%emt 0:00:39] Strongly threatening ...Qd4+.} 52. Qb5+ {[%emt 0:00:22]} (52. c6+ $142 Bxc6 53. Rd1+ Ke7 54. Qxc6) 52... Ke7 $2 {[%emt 0:00:54]} (52... Kc8 53. Qa6+ Kd8 54. Qb6+ (54. Rd1 Qf3 $11) 54... Ke8 55. Qb5+ Kd8 56. Qb6+ (56. Rd1 Qf3 $11) 56... Ke8 57. Qb8+ Kd7 58. Qd6+ (58. Rd1 Qc3 $16) 58... Kc8 59. Qa6+) 53. Qd3 {[%emt 0:00:23] White threatens Qxd5 and mate.} Kd7 {[%emt 0:01:02]} 54. Rb1 {[%emt 0:00:47] Against Qb2} Qe5 {[%emt 0:01:38]} 55. Qh7+ {[%emt 0:00:38]} Kd8 {[%emt 0:01:16] [#]} 56. Qd3 $2 {[%emt 0:00:23]} ({Not} 56. Qf7 Bf3 57. Qf8+ Kd7 58. Qd6+ (58. c6+ Bxc6 59. Rd1+ Bd5 $16) 58... Qxd6 59. cxd6 Kxd6 $18) (56. Qh8+ $3 $18 {[%mdl 512]} Qxh8 57. Rb8+ Kc7 58. Rxh8) 56... Kc7 $2 {[%emt 0:01:33][%mdl 8192]} (56... Kd7 $1 $11 57. c6+ Kd8) 57. Qd2 {[%emt 0:00:36]} Qe4 {[%emt 0:03:23]} (57... Kc6 $142 58. Qd3 Kc7 59. Qh7+ Kc8) 58. Qf4+ $1 {[%emt 0:01:05]} Qxf4 {[%emt 0:00:06]} 59. gxf4 {[%emt 0:00:03] KR-KB} Kc6 {[%emt 0:05:51]} 60. Rc1 {[%emt 0:00:17]} h4 {[%emt 0:00:00]} 61. Kf2 {[%emt 0:00:10]} Be4 {[%emt 0:00:00]} 62. Ke3 {[%emt 0:00:41]} Bd5 {[%emt 0:00:00]} 63. Kf2 {[%emt 0:01:27] Inhibits g3+.} (63. Kd4 $142 g3 64. hxg3 hxg3 65. Rc3) 63... Be4 $1 {[%emt 0:00:00]} 64. Rc3 {[%emt 0:00:29]} Bd5 {[%emt 0:00:00]} 65. Rc2 {[%emt 0:00:35] Black must now prevent Rc1.} Bf3 $2 {[%emt 0:00:00]} (65... Be4 66. Rc1 Bd5) 66. Ke3 {[%emt 0:00:31]} Bd5 {[%emt 0:00:00]} 67. Kd4 {[%emt 0:00:32]} g3 {[%emt 0:00:00] [#]} 68. hxg3 $1 {[%emt 0:00:34]} hxg3 {[%emt 0:00:00] [#]} 69. Rc3 $1 {[%emt 0:00:18]} g2 {[%emt 0:00:00]} 70. Rg3 {[%emt 0:00:04]} Bf3 {[%emt 0:00:00]} 71. Ke5 $2 {[%emt 0:00:15]} (71. Rg7 Kb5 72. Ke5 Bh5 73. Kxe6 Bf3 74. Kd6 Be4 75. Rg5 Kc4 76. c6) 71... Bd5 $1 $11 {[%emt 0:00:00]} 72. Kd4 $2 {[%emt 0:00:15][%mdl 8192]} (72. Rg7 $11 Kxc5 73. Rg4) 72... Bf3 $1 {[%emt 0:00:02]} 73. Rg6 {[%emt 0:01:15]} Kb5 {[%emt 0:03:53]} 74. Ke5 $2 {[%emt 0:00:25]} (74. Rg5 {mates} Kc6 75. Rg7 Kb5 76. Ke5 Kxc5 77. Kxe6 Be4 78. Ke5 Bf3 79. f5) 74... Kxc5 {[%emt 0:00:06]} 75. Kxe6 {[%emt 0:00:15]} Kd4 {[%emt 0:00:08]} 76. f5 {[%emt 0:00:33][%cal Bf4f5,Bf5f6][%mdl 32] Intending f6 and mate.} Bd5+ {[%emt 0:00:07]} 77. Kd6 {[%emt 0:00:30]} Be4 {[%emt 0:00:02]} 78. Rg4 {[%emt 0:00:10] Threatening mate with f6.} Ke3 $2 {[%emt 0:00:05][%mdl 8192]} (78... g1=R $11 79. Rxg1 Bxf5) 79. f6 {[%emt 0:00:11] Weighted Error Value: White=0.46/Black=0.56} 1-0